Cogmind - Beta 14 @@@ ROGUE MODE // 2025.01.15 @ 12:38:41 Player: muesli Result: Destroyed by C-40 Crusher with Compactor Performance ------------- Evolutions (3) 1500 Regions Visited (7) 1400 Robots Destroyed (13) 65 Value Destroyed (399) 399 Prototype IDs (2) 40 Alien Tech Used (0) 0 Bonus (325) 325 TOTAL SCORE: 3729 Bonus ------- Follower Combat Kills 25 Aligned with FarCom 300 Cogmind --------- Core Integrity 0/700 Matter 92/300 Energy 73/100 System Corruption 0% Temperature Cool (0) Movement Core (50) Location -7/Waste Parts ------- > --- POWER (1) -------- (None) > --- PROPULSION (4) --- (None) > --- UTILITY (4) ------ (None) > --- WEAPON (4) ------- (None) > --- INVENTORY (5) ---- (None) Peak State ------------ > --- POWER ------------ Nuclear Core > --- PROPULSION ------- Aluminum Leg Aluminum Leg Aluminum Leg Aluminum Leg > --- UTILITY ---------- Small Storage Unit Sensor Array Signal Interpreter Targeting Computer > --- WEAPON ----------- Precision Shock Rifle High-powered Shotgun High-powered Shotgun Heavy Proton Missile Launcher > --- INVENTORY -------- Nuclear Core Light Nuclear Core Aluminum Leg Huge Storage Unit Advanced ECM Suite High-powered Shotgun Gauss Rifle [Rating: 30] Favorites ----------- Power Ion Engine Engine Ion Engine Power Core Nuclear Core Propulsion Aluminum Leg Treads Light Treads Leg Aluminum Leg Utility Small Storage Unit Device Sensor Array Storage Small Storage Unit Processor Signal Interpreter Weapon Light Assault Rifle Energy Gun Precision Shock Rifle Ballistic Gun Light Assault Rifle Launcher Heavy Proton Missile Launcher Slashing Weapon Katana Build | -11 -10 -10 -10 -9 -8 -7 -7 ------- Run | Yrd Mat Min Exi Min Mat Fac Was Slots Evolved 6 | . . . . . 4 2 . Power . | . . . . . . . . Propulsion 2 | . . . . . 1 1 . Utility 2 | . . . . . 1 1 . Weapon 2 | . . . . . 2 . . Parts Attached 39 | . 5 5 1 2 12 5 9 Power 5 | . . . . 1 2 . 2 Engine . | . . . . . . . . Core 5 | . . . . 1 2 . 2 Reactor . | . . . . . . . . Propulsion 11 | . 2 3 . . 4 1 1 Treads 2 | . 2 . . . . . . Leg 9 | . . 3 . . 4 1 1 Wheel . | . . . . . . . . Hover . | . . . . . . . . Flight . | . . . . . . . . Utility 8 | . 3 . 1 . 2 1 1 Device 3 | . 1 . . . 1 . 1 Storage 3 | . 2 . . . 1 . . Processor 2 | . . . 1 . . 1 . Hackware . | . . . . . . . . Protection . | . . . . . . . . Artifact . | . . . . . . . . Weapon 15 | . . 2 . 1 4 3 5 Energy Gun 1 | . . . . . . 1 . Energy Cannon . | . . . . . . . . Ballistic Gun 11 | . . 2 . 1 4 1 3 Ballistic Cannon . | . . . . . . . . Launcher 2 | . . . . . . . 2 Special Weapon . | . . . . . . . . Impact Weapon . | . . . . . . . . Slashing Weapon 1 | . . . . . . 1 . Piercing Weapon . | . . . . . . . . Special Melee Weapon . | . . . . . . . . Unidentified Prototypes 2 | . . . . . . 1 1 Parts Lost 13 | . . 1 . . . . 12 Power 3 | . . . . . . . 3 Propulsion 2 | . . . . . . . 2 Utility 3 | . . . . . . . 3 Weapon 5 | . . 1 . . . . 4 Highest Loss Streak 12 | . . 1 . . . . 12 To Critical Strikes . | . . . . . . . . Average Slot Usage (%) 94 | . 89 99 100 100 90 100 74 Engine 7 | . 14 14 14 5 . . . Core 4 | . . . . 8 9 7 4 Leg 27 | . 28 25 28 28 26 30 21 Device 3 | . 3 14 . . 3 7 5 Storage 11 | . 14 14 14 14 9 7 5 Processor 9 | . . . 13 14 9 15 12 Ballistic Gun 28 | . 28 28 28 28 32 28 16 Peak Build Rating 30 | 6 7 7 7 10 22 25 30 Average Rating 12 | 6 6 6 7 9 18 24 20 On Entrance 11 | 6 6 7 7 7 10 22 25 Naked Turns 19 | . . . . . . . 19 Heaviest Build 32 | 12 13 14 14 14 26 26 32 Greatest Support 40 | 20 40 40 20 20 30 40 40 Greatest Overweight (x) 4 | . . 4 . 4 . . . Average Overweight (x) . | . . . . . . . . Largest Inventory Capacity 25 | 8 25 8 8 8 8 8 8 Average Capacity 7 | 8 8 8 8 8 8 8 7 Most Carried 8 | 6 8 8 7 8 8 8 7 Average Carried 7 | 6 6 6 7 7 7 6 5 Final Capacity 8 | 8 8 8 8 8 8 8 5 Final Carried 8 | 6 7 7 7 8 8 7 . Class Distribution -------------------- 62% | Mutant 33% | Scavenger-Skirmisher 3% | Scavenger-Mutant Dominant Class ---------------- Mutant | -10/Materials Mutant | -10/Mines Mutant | -10/Exiles Mutant | -9/Mines Scavenger-Skirmisher | -8/Materials Scavenger-Skirmisher | -7/Factory Scavenger-Skirmisher | -7/Waste Resources | -11 -10 -10 -10 -9 -8 -7 -7 ----------- Run | Yrd Mat Min Exi Min Mat Fac Was Matter Collected 646 | 200 30 162 . 55 199 . . Remotely . | . . . . . . . . Salvage Created 505 | . 69 172 . 51 213 . . Parts 25 | . 7 4 . 3 11 . . Haulers Intercepted . | . . . . . . . . Recyclers Shooed . | . . . . . . . . Parts Field Recycled . | . . . . . . . . Retrieved Matter . | . . . . . . . . Parts Self-Destructed . | . . . . . . . . Prevented . | . . . . . . . . Kills | -11 -10 -10 -10 -9 -8 -7 -7 ------- Run | Yrd Mat Min Exi Min Mat Fac Was Combat Hostiles Destroyed 10 | . 3 2 . 1 4 . . Guns 10 | . 3 2 . 1 4 . . Classes Destroyed 6 | . 2 2 . . 2 . . Recycler 1 | . . 1 . . . . . Watcher 2 | . 1 . . . 1 . . Swarmer 3 | . 3 . . . . . . Grunt 5 | . . 2 . 1 2 . . Sentry 1 | . . . . . 1 . . Hunter 1 | . . . . . 1 . . Best Kill Streak 3 | . 3 2 . 1 1 . . Combat Bots Only 3 | . 3 1 . 1 1 . . Max Kills in Single Turn 1 | . 1 1 . 1 1 . . Gunslinging . | . . . . . . . . Exploded . | . . . . . . . . Melee . | . . . . . . . . Uniques/NPCs Destroyed . | . . . . . . . . Combat | -11 -10 -10 -10 -9 -8 -7 -7 -------- Run | Yrd Mat Min Exi Min Mat Fac Was Hostile Shots Fired 91 | . 23 18 . 4 24 . 22 Missed 25 | . 11 5 . . 7 . 2 Damage Taken 1541 | . 115 192 . 44 250 . 940 Core 799 | . 10 66 . 11 . . 712 Absorbed by Shields . | . . . . . . . . Core Remaining (%) 88 | 100 . . . 65 100 . . Volleys Fired 55 | . 17 16 . 5 12 . 5 Largest 4 | . 2 2 . 2 4 . 2 Hottest 101 | . 40 40 . 43 101 . 80 Shots Fired 121 | . 33 32 . 10 38 . 8 Gun 121 | . 33 32 . 10 38 . 8 Cannon . | . . . . . . . . Launcher . | . . . . . . . . Special . | . . . . . . . . Kinetic 118 | . 33 32 . 10 38 . 5 Thermal . | . . . . . . . . Explosive . | . . . . . . . . Electromagnetic 3 | . . . . . . . 3 Robot Hit Streak 10 | . 5 6 . 2 4 . 10 Robot Miss Streak 3 | . 2 2 . 2 3 . 1 Penetration Max . | . . . . . . . . Secondary Targets 2 | . . 1 . . 1 . . Max Gunslinging Chain 1 | . . 1 . . 1 . . Shots Hit Robots 81 | . 19 21 . 6 27 . 8 Core Hits 31 | . 9 7 . 2 13 . . Critical Kills 1 | . . . . 1 . . . Critical Parts Destroyed 1 | . . . . . 1 . . Critical Strikes 2 | . . . . 1 1 . . Destroy 2 | . . . . 1 1 . . Melee Attacks 2 | . . . . . . 2 . Impact . | . . . . . . . . Slashing 2 | . . . . . . 2 . Piercing . | . . . . . . . . Sneak Attacks . | . . . . . . . . Combat Hostiles . | . . . . . . . . Follow-up Attacks . | . . . . . . . . Damage Inflicted 988 | . 154 220 . 79 403 . 132 Guns 972 | . 154 220 . 79 387 . 132 Cannons . | . . . . . . . . Explosions . | . . . . . . . . Melee . | . . . . . . . . Ramming 16 | . . . . . 16 . . Kinetic 969 | . 154 220 . 79 387 . 129 Thermal . | . . . . . . . . Explosive . | . . . . . . . . Electromagnetic 3 | . . . . . . . 3 Impact . | . . . . . . . . Slashing . | . . . . . . . . Piercing . | . . . . . . . . Highest Corruption . | . . . . . . . . Average Corruption . | . . . . . . . . Corruption Purged . | . . . . . . . . Corruption Blocked . | . . . . . . . . Overload Shots . | . . . . . . . . Overflow Damage . | . . . . . . . . Projectiles . | . . . . . . . . Explosions . | . . . . . . . . Melee . | . . . . . . . . Knockbacks . | . . . . . . . . Impact . | . . . . . . . . Kinetic . | . . . . . . . . Secondary . | . . . . . . . . Self-Inflicted Damage . | . . . . . . . . Shots . | . . . . . . . . Rammed . | . . . . . . . . Targets Rammed 2 | . . . . . 2 . . Kicked 2 | . . . . . 2 . . Crushed . | . . . . . . . . Highest Temperature 87 | . . 50 . 16 87 . . Average Temperature 22 | . . 26 . 6 24 . . Received Heat Transfer 339 | . 27 162 . 24 126 . . Siege Activations . | . . . . . . . . Robots Corrupted . | . . . . . . . . Combat Hostiles . | . . . . . . . . Parts Fried . | . . . . . . . . Impact Corruptions . | . . . . . . . . Robots Melted . | . . . . . . . . Combat Hostiles . | . . . . . . . . Parts Melted 1 | . . . . . 1 . . Heat Transferred . | . . . . . . . . Parts Sabotaged . | . . . . . . . . Parts Stolen . | . . . . . . . . Parts Stripped . | . . . . . . . . Power Chain Reactions . | . . . . . . . . Alert | -11 -10 -10 -10 -9 -8 -7 -7 ------- Run | Yrd Mat Min Exi Min Mat Fac Was Peak Influence 107 | . 107 86 . 63 74 2 . Initial 41 | . . 41 . . 24 . . Average 38 | . 55 61 . 42 41 . . Maximum Alert Level . | . . . . . . . . Low Security (%) 100 | 100 100 100 . 100 100 100 100 Level 1 . | . . . . . . . . Level 2 . | . . . . . . . . Level 3 . | . . . . . . . . Level 4 . | . . . . . . . . Level 5 . | . . . . . . . . High Security . | . . . . . . . . Max Security . | . . . . . . . . Squads Dispatched . | . . . . . . . . Investigation . | . . . . . . . . Extermination . | . . . . . . . . Reinforcement . | . . . . . . . . Assault . | . . . . . . . . Garrison . | . . . . . . . . Intercept . | . . . . . . . . Searches Triggered . | . . . . . . . . Construction Impeded . | . . . . . . . . Haulers Reinforced . | . . . . . . . . Active Scanning Responses . | . . . . . . . . Cargo Convoy Interrupts . | . . . . . . . . Stealth | -11 -10 -10 -10 -9 -8 -7 -7 --------- Run | Yrd Mat Min Exi Min Mat Fac Was Distress Signals 1 | . 1 . . . . . . Communications Jammed . | . . . . . . . . Distress Signals . | . . . . . . . . Times Spotted 26 | . 8 2 . 2 8 . 6 Peak Tracking Total 6 | . 4 2 . 2 4 . 6 Tactical Retreats . | . . . . . . . . Traps | -11 -10 -10 -10 -9 -8 -7 -7 ------- Run | Yrd Mat Min Exi Min Mat Fac Was Traps Triggered 1 | . . . . . . 1 . Indirectly . | . . . . . . . . Trap Hack Attempts . | . . . . . . . . Triggered . | . . . . . . . . Disarmed . | . . . . . . . . Reprogrammed . | . . . . . . . . Reused . | . . . . . . . . Traps Extracted . | . . . . . . . . Installed . | . . . . . . . . Triggered . | . . . . . . . . Machines | -11 -10 -10 -10 -9 -8 -7 -7 ---------- Run | Yrd Mat Min Exi Min Mat Fac Was Machines Disabled . | . . . . . . . . Max in Single Turn . | . . . . . . . . Machines Repaired . | . . . . . . . . Machines Dismantled . | . . . . . . . . Machines Sabotaged . | . . . . . . . . Overloaded Fab Kills . | . . . . . . . . Hacking | -11 -10 -10 -10 -9 -8 -7 -7 --------- Run | Yrd Mat Min Exi Min Mat Fac Was Machines Accessed 5 | . . . 4 . 1 . . Terminals 1 | . . . . . 1 . . Fabricators . | . . . . . . . . Repair Stations . | . . . . . . . . Recycling Units . | . . . . . . . . Scanalyzers . | . . . . . . . . Garrison Access . | . . . . . . . . Total Hacks 32 | . . . 28 . 4 . . Successful 30 | . . . 28 . 2 . . Failed 2 | . . . . . 2 . . Catastrophic . | . . . . . . . . Database Lockouts . | . . . . . . . . Manual 2 | . . . 2 . . . . Terminals 4 | . . . . . 4 . . Fabricators . | . . . . . . . . Repair Stations . | . . . . . . . . Recycling Units . | . . . . . . . . Scanalyzers . | . . . . . . . . Garrison Access . | . . . . . . . . Terminal Hacks 30 | . . . 28 . 2 . . Record 29 | . . . 28 . 1 . . Dispatch Records 1 | . . . . . 1 . . Fabricator Hacks . | . . . . . . . . Repair Station Hacks . | . . . . . . . . Recycling Unit Hacks . | . . . . . . . . Scanalyzer . | . . . . . . . . Garrison Access Hacks . | . . . . . . . . Unauthorized Hacks . | . . . . . . . . Terminals . | . . . . . . . . Fabricators . | . . . . . . . . Repair Stations . | . . . . . . . . Recycling Units . | . . . . . . . . Scanalyzers . | . . . . . . . . Garrison Access . | . . . . . . . . Data Cores Recovered . | . . . . . . . . Used . | . . . . . . . . Hacking Detections . | . . . . . . . . Full Trace Events . | . . . . . . . . Feedback Events . | . . . . . . . . Feedback Blocked . | . . . . . . . . Robot Schematics Acquired . | . . . . . . . . Robots Built . | . . . . . . . . Authchips . | . . . . . . . . Time . | . . . . . . . . Total Robot Build Rating . | . . . . . . . . Part Schematics Acquired . | . . . . . . . . Parts Built . | . . . . . . . . Authchips . | . . . . . . . . Time . | . . . . . . . . Total Part Build Rating . | . . . . . . . . Parts Repaired . | . . . . . . . . Time . | . . . . . . . . Parts Recycled . | . . . . . . . . Recycled Matter . | . . . . . . . . Retrieved Matter . | . . . . . . . . Retrieved Components . | . . . . . . . . Parts Scanalyzed . | . . . . . . . . Part Schematics Acquired . | . . . . . . . . Parts Damaged . | . . . . . . . . Bothacking | -11 -10 -10 -10 -9 -8 -7 -7 ------------ Run | Yrd Mat Min Exi Min Mat Fac Was Used RIF Installer . | . . . . . . . . Robots Hacked . | . . . . . . . . Non-combat . | . . . . . . . . Combat . | . . . . . . . . Robot Hacks Applied . | . . . . . . . . Relay Couplers Released . | . . . . . . . . Fabnet Peak Effective % . | . . . . . . . . Robots Rewired . | . . . . . . . . Allies Hacked . | . . . . . . . . Hacks Repelled . | . . . . . . . . Allies | -11 -10 -10 -10 -9 -8 -7 -7 -------- Run | Yrd Mat Min Exi Min Mat Fac Was Total Allies 4 | . . 3 . . . . 1 Largest Group 3 | . . 3 3 3 3 . 1 Highest-Rated Group 40 | . . 40 40 40 40 . 31 Highest-Rated Ally 31 | . . 16 16 16 16 . 31 Total Orders . | . . . . . . . . Ally Attacks 25 | . . . . 12 11 . 2 Total Damage 305 | . . . . 108 157 . 40 Kills 1 | . . . . 1 . . . Allies Corrupted . | . . . . . . . . Allies Melted . | . . . . . . . . Intel | -11 -10 -10 -10 -9 -8 -7 -7 ------- Run | Yrd Mat Min Exi Min Mat Fac Was Robot Analysis Total . | . . . . . . . . Derelict Logs Recovered 1 | . . 1 . . . . . Drone Launches . | . . . . . . . . Drone Recoveries . | . . . . . . . . Exploration | -11 -10 -10 -10 -9 -8 -7 -7 ------------- Run | Yrd Mat Min Exi Min Mat Fac Was Turns Passed 3562 | 4 371 250 1168 328 1005 231 205 Spaces Moved 2509 | 4 259 149 973 229 603 153 139 Core 38 | . . 4 . 29 . . 5 Treads 14 | . 2 12 . . . . . Legs 2457 | 4 257 133 973 200 603 153 134 Wheels . | . . . . . . . . Hover . | . . . . . . . . Flight . | . . . . . . . . Fastest Speed 50 | 120 120 120 120 120 120 120 50 Average Speed 121 | 120 120 126 120 136 120 120 117 Slowest Speed 250 | 120 160 250 120 250 120 120 120 Overloaded Moves . | . . . . . . . . Propulsion Burnouts . | . . . . . . . . Robots Hopped . | . . . . . . . . Cave-ins Triggered . | . . . . . . . . Exploration Rate (%) 38 | 2 44 33 93 44 37 3 50 Regions Visited 7 Branch Regions 3 Pre-discovered Areas 2 | . . 1 1 . . . . Known Exits Taken 3 | . . . 1 1 1 . . Unknown Exits Taken 3 | 1 1 1 . . . . . Scrap Searched 1 | . . . . 1 . . . Spaces Dug 2 | . . . . . . 2 . Terrain Destroyed 2 | . . . . . . 2 . Melee 2 | . . . . . . 2 . Projectile . | . . . . . . . . AOE . | . . . . . . . . Terrain Rammed . | . . . . . . . . Walls Destroyed . | . . . . . . . . Machines Disabled . | . . . . . . . . Actions | -11 -10 -10 -10 -9 -8 -7 -7 --------- Run | Yrd Mat Min Exi Min Mat Fac Was Total 2918 | 3 291 181 973 236 865 197 172 Wait 286 | . 6 9 . . 218 35 18 Move 2503 | 3 258 148 972 228 602 153 139 Hop . | . . . . . . . . Pick Up 12 | . 3 . . . 7 1 1 Fast Attach 5 | . . 1 . . 4 . . Attach 15 | . 1 2 . . 3 2 7 Detach 3 | . . 2 . . 1 . . Swap 19 | . 4 2 1 2 5 3 2 Drop 16 | . 2 1 . 1 11 1 . Fire 55 | . 17 16 . 5 12 . 5 Melee 2 | . . . . . . 2 . Ram . | . . . . . . . . Kick 2 | . . . . . 2 . . Crush . | . . . . . . . . Escape Stasis . | . . . . . . . . Rewire . | . . . . . . . . Trap . | . . . . . . . . Miscellaneous . | . . . . . . . . Route ------- -11/Scrapyard -10/Materials (discovered 2 exits: [*Min x2]) -10/Mines -10/Exiles (discovered 2 exits: *Min x2) -9/Mines -8/Materials (discovered 2 exits: *Fac x2) -7/Factory -7/Waste History --------- Turn | Location | Event 1 | -11/Scrapyard | Discovered new exit (range 3) 5 | -11/Scrapyard | Entered Materials 217 | -10/Materials | Discovered new exit (range 9) 313 | -10/Materials | Build established: Mutant 332 | -10/Materials | Discovered new exit (range 15) 376 | -10/Materials | Entered Mines 574 | -10/Mines | Assisted by bots powering up and referring to "LRC-V3" 592 | -10/Mines | Learned location of Mines (-9) 617 | -10/Mines | Deemed a non-threat by the Exiles lab entrance 619 | -10/Mines | Discovered new exit (range 5) 626 | -10/Mines | Entered Exiles 626 | -10/Exiles | Accompanied by 3 allies 652 | -10/Exiles | Discovered new exit (range 15) 675 | -10/Exiles | Identified exit to Mines 702 | -10/Exiles | Met 8R-AWN 728 | -10/Exiles | Met EX-HEX 773 | -10/Exiles | Met EX-DEC 820 | -10/Exiles | Learned location of Zion (-7) 900 | -10/Exiles | Discovered exit to Mines (range 12) 985 | -10/Exiles | Visited The Gauntlet 1236 | -10/Exiles | Met EX-BIN 1289 | -10/Exiles | Aligned with FarCom system 1290 | -10/Exiles | Given EX-Vault access code 1794 | -10/Exiles | Entered Mines 1794 | -9/Mines | Accompanied by 3 allies 2097 | -9/Mines | Discovered new exit (range 15) 2121 | -9/Mines | Identified exit to Materials 2122 | -9/Mines | Entered Materials 2122 | -8/Materials | Accompanied by 3 allies 2122 | -8/Materials | Evolved 4 slots: Propulsion x1, Utility x1, Weapon x2 2231 | -8/Materials | Lost 3 allies 2531 | -8/Materials | Discovered new exit (range 12) 2605 | -8/Materials | Build established: Scavenger-Skirmisher 2752 | -8/Materials | Discovered new exit (range 16) 2776 | -8/Materials | Identified exit to Factory 3127 | -8/Materials | Entered Factory 3127 | -7/Factory | Evolved 2 slots: Propulsion x1, Utility x1 3358 | -7/Factory | Sucked down chute 3358 | -7/Factory | Entered Waste 3359 | -7/Waste | Met a frightened Derelict 3416 | -7/Waste | Spotted C-40 Crusher 3433 | -7/Waste | Spotted C-40 Crusher 3472 | -7/Waste | Crushed by Compactor (1 part destroyed, 2 dropped) 3483 | -7/Waste | Spotted C-40 Crusher 3492 | -7/Waste | Spotted C-40 Crusher 3501 | -7/Waste | Crushed by Compactor (1 part destroyed, 1 dropped) 3504 | -7/Waste | Crushed by Compactor (1 part destroyed, 1 dropped) 3506 | -7/Waste | Spotted C-40 Crusher 3509 | -7/Waste | Spotted C-40 Crusher 3527 | -7/Waste | Crushed by Compactor (1 part destroyed, 1 dropped) 3528 | -7/Waste | Crushed by Compactor (1 part destroyed, 1 dropped) 3530 | -7/Waste | Crushed by Compactor (1 part destroyed, 1 dropped) 3531 | -7/Waste | Crushed by Compactor (1 part destroyed) 3536 | -7/Waste | Crushed by Compactor (1 part destroyed) 3539 | -7/Waste | Crushed by Compactor (1 part destroyed) 3542 | -7/Waste | Crushed by Compactor (1 part destroyed, 1 dropped) 3545 | -7/Waste | Crushed by Compactor (1 part destroyed) 3547 | -7/Waste | Core integrity fell below 50% 3551 | -7/Waste | Crushed by Compactor (1 part destroyed) 3559 | -7/Waste | Core integrity fell below 20% 3563 | -7/Waste | Destroyed by C-40 Crusher with Compactor Last Messages --------------- Signal Interpreter crushed. Sensor Array crushed. Aluminum Leg crushed. Hpw. Shotgun crushed. Prc. Shock Rifle crushed. Targeting Computer crushed. Aluminum Leg crushed. Sensor Array crushed. Prc. Shock Rifle crushed. Hvy. Proton Missile Launcher crushed. Nuclear Core crushed. Lgt. Nuclear Core crushed. Hpw. Shotgun crushed. The Adv. ECM Suite is an example of a part that consumes a large amount of energy each turn, consider turning it off when not vital. Your per-turn energy upkeep is currently significantly in the negative, which may be okay for now but be prepared to manage it more closely. Adv. ECM Suite crushed. Acquired Hpw. Shotgun. Hpw. Shotgun crushed. Map ----- +----------------------------------------------------+ | #???????????????????????????????? | | #???????????????????????????????? | | #???????????????????????????????? | | #???????????????????????????????? | | # ######## #???????????????????????????????? | | # #??????# #???????????????????????????????? | | # #??????# #???????? ??????????????????????? | | # #??????# #??????? ????????????????????? | | # ######## ######## ###?????????????????? | | ?????????????????? | | ?????????????????? | | ! ??????????????????? | | ???????????????????? | | # ######## ######## #???????????????????? | | # #??????# #??????# #???????????????????? | | # #??????# #??????# #???????????????????? | | # #??????# #??????#CC #???????????????????? | | # #??????# ########CC ######## ??????????? | | #??????# ?????????? | | #??????# ?????????? | | #??????# ????????? | | ???????# = !" CCCC ?????????? | | ????????????# ########CCCC####????????????????? | | ????????????# #??????#CCCC#???????????????????? | | ????????????# #??????#CCCC#???????????????????? | | ????????????# #??????#@CC #???????????????????? | | ????????????# #??????# CC #???????????????????? | | ????????????######??????######???????????????????? | | ?????????????????????????????????????????????????? | | ?????????????????????????????????????????????????? | | ?????????????????????????????????????????????????? | | ?????????????????????????????????????????????????? | | ?????????????????????????????????????????????????? | | ?????????????????????????????????????????????????? | | ?????????????????????????????????????????????????? | | ?????????????????????????????????????????????????? | | ?????????????????????????????????????????????????? | | ?????????????????????????????????????????????????? | | ?????????????????????????????????????????????????? | | ?????????????????????????????????????????????????? | | ?????????????????????????????????????????????????? | | ?????????????????????????????????????????????????? | | ?????????????????????????????????????????????????? | | ?????????????????????????????????????????????????? | | ?????????????????????????????????????????????????? | | ?????????????????????????????????????????????????? | | ?????????????????????????????????????????????????? | | ?????????????????????????????????????????????????? | | ?????????????????????????????????????????????????? | | ?????????????????????????????????????????????????? | +----------------------------------------------------+ Best States ------------- Heat Dissipation 34 Energy Generation 14 Energy Capacity 250 Matter Stores 300 Matter Capacity 300 Sight Range 16 Robot Scan Range 14 Terrain Scan Density 10 Evasion (%) 55 Targeting Accuracy 5 Recoil Reduction 2 Item Schematics ----------------- None Robot Schematics ------------------ None Fabricated ------------ Nothing Alien Tech Used ----------------- None Achievements -------------- None Challenges ------------ None Game ------ Seed NodeImprovedNeutralizer Manual? 0 Play Time 00:49:30 Cumulative 9.2 hours Start 2025.01.15 @ 11:30:57 End 2025.01.15 @ 12:38:41 Sessions 1 Manual Loads 0 Difficulty Rogue Special Mode None Game No. 17 Rogue 14 Adventurer 3 Explorer 0 Win Type - Total 0 Types 0/0/0/0/0/0/0/0/0 Lore% 7 Gallery% 13 Achievement% 14 Wizard Run 0 Options --------- Layout 0 ASCII 1 Keyboard 1 Movement Vi Keybinds 0 Fullscreen 2 Font 24/Smallcaps Map View 76x50 Zoom Use 0% Tactical HUD 0 Map Filters NONE Filters NONE Steam 1 RUN: 9dcf0f0a-a90a-4960-8470-fae04d593266